fUSD/lending_fUSD_20241215
["ID","MTS","AMOUNT","RATE_DAILY","PERIOD"]
[345468762,1734276645735,-463.37689139,0.00019999,3]
[345468763,1734276645745,-228.04,0.00019999,3]
[345468764,1734276645754,-500.0,0.00019999,3]
[345468765,1734276645763,-500.0,0.00019999,3]
[345468766,1734276645773,-500.0,0.00019999,3]
[345468767,1734276645783,-500.0,0.00019999,3]
[345468768,1734276645793,-410.89,0.00019999,3]
[345468769,1734276645802,-500.0,0.00019999,3]
[345468770,1734276645811,-332.61,0.00019999,3]
[345468771,1734276645821,-500.0,0.00019999,3]
[345468772,1734276645830,-500.0,0.00019999,3]
[345468774,1734276645839,-500.0,0.00019999,3]
[345468776,1734276645849,-500.0,0.00019999,3]
[345468778,1734276645859,-500.0,0.00019999,3]
[345468779,1734276645868,-500.0,0.00019999,3]
[345468780,1734276645878,-592.96,0.00019999,3]
[345468781,1734276645887,-340.89707628,0.00019999,3]
[345468782,1734276645901,-159.10292372,0.00019999,3]
[345468783,1734276645913,-236.80707628,0.00019999,3]
[345468784,1734276645928,-263.19292372,0.00019999,3]
[345468785,1734276645938,-500.0,0.00019999,3]
[345468786,1734276645948,-500.0,0.00019999,3]
[345468787,1734276645957,-500.0,0.00019999,3]
[345468788,1734276645967,-500.0,0.00019999,3]
[345468789,1734276645976,-625.89,0.00019999,3]
[345468790,1734276645985,-234.17,0.00019999,3]
[345468791,1734276645995,-500.0,0.00019999,3]
[345468792,1734276646005,-59.39644388,0.00019999,3]
[345468796,1734277286200,165.43,0.00014955,2]
[345468797,1734277315312,450.0,0.00013,2]
[345468798,1734277316384,500.0,0.00015,2]
[345468799,1734277396097,5104.5,0.00014281,7]
[345468801,1734277486681,165.16,0.00010137,2]
[345468826,1734277831691,-394.66999,0.00016556,2]
[345468827,1734277831800,-854.66001,0.00016556,2]
[345468828,1734277831813,-165.16,0.00016813,2]
[345468829,1734277831825,-550.0,0.00017,2]
[345468830,1734277831836,-150.0,0.00018,2]
[345468831,1734277831846,-223.18974333,0.00018,2]
[345468832,1734277831857,-261.76323308,0.00018,2]
[345468833,1734277831868,-4681.18,0.00018431,2]
[345468834,1734277831878,-749.46,0.00018432,2]
[345468835,1734277831888,-196.6,0.00018456,2]
[345468836,1734277831900,-161.73,0.00018456,2]
[345468837,1734277831912,-300.0,0.00018467,2]
[345468838,1734277831923,-440.74,0.00018468,2]
[345468839,1734277831934,-23900.0,0.0001865,2]
[345468840,1734277831945,-500.0,0.00018664,2]
[345468841,1734277831956,-155.08,0.00018739,2]
[345468842,1734277831967,-150.0,0.00018767,2]
[345468843,1734277831978,-200.0,0.00018784,2]
[345468844,1734277831989,-150.0,0.00018805,2]
[345468845,1734277832001,-200.0,0.00018805,2]
[345468846,1734277832012,-157.33,0.00018817,2]
[345468847,1734277832023,-1249.33,0.0001882,2]
[345468848,1734277832034,-426.02,0.00018824,2]
[345468849,1734277832045,-1000.0,0.00018879,2]
[345468850,1734277832056,-250.0,0.00018929,2]
[345468851,1734277832069,-339.994,0.00019,2]
[345468852,1734277832080,-600.0,0.00019,2]
[345468853,1734277832091,-150.0,0.00019,2]
[345468854,1734277832103,-500.0,0.00019587,2]
[345468855,1734277832113,-872.0,0.00019599,2]
[345468856,1734277832124,-981.8709,0.000197,2]
[345468857,1734277832135,-781.09402782,0.000197,2]
[345468858,1734277832145,-781.09402782,0.00019722,2]
[345468859,1734277832156,-150.0,0.00019729,2]
[345468860,1734277832166,-150.0,0.00019739,2]
[345468861,1734277832177,-150.0,0.00019743,2]
[345468862,1734277832188,-781.09402782,0.00019744,2]
[345468863,1734277832199,-150.0,0.00019745,2]
[345468864,1734277832210,-150.0,0.00019748,2]
[345468865,1734277832221,-781.09402782,0.00019767,2]
[345468866,1734277832231,-150.0,0.0001977,2]
[345468867,1734277832242,-150.0,0.00019771,2]
[345468868,1734277832255,-150.0,0.00019788,2]
[345468869,1734277832266,-781.09402782,0.00019789,2]
[345468870,1734277832276,-150.0,0.00019789,2]
[345468871,1734277832286,-162.56,0.0001979,2]
[345468873,1734277832297,-464.83601443,0.0001979,2]
[345468875,1734277832307,-150.0,0.00019796,2]
[345468877,1734277832320,-619.69155641,0.00019798,2]
[345468880,1734277832333,-562.84,0.00019798,3]
[345468882,1734277832345,-356.66557749,0.00019798,3]
[345468884,1734277832355,-2235.695,0.00019799,2]
[345468886,1734277832366,-261.399,0.00019799,2]
[345468888,1734277832375,-547.28,0.00019799,3]
[345468890,1734277832385,-500.0,0.00019799,3]
[345468892,1734277832395,-595.95,0.00019799,3]
[345468894,1734277832405,-500.0,0.00019799,3]
[345468897,1734277832416,-500.0,0.00019799,3]
[345468899,1734277832428,-500.0,0.00019799,3]
[345468901,1734277832439,-500.0,0.00019799,3]
[345468903,1734277832450,-500.0,0.00019799,3]
[345468905,1734277832460,-500.0,0.00019799,3]
[345468907,1734277832470,-500.0,0.00019799,3]
[345468909,1734277832480,-500.0,0.00019799,3]
[345468911,1734277832490,-500.0,0.00019799,3]
[345468914,1734277832501,-393.51811,0.00019799,3]
[345468916,1734277832517,-500.0,0.00019799,3]
[345468918,1734277832532,-500.0,0.00019799,3]
[345468920,1734277832542,-500.0,0.00019799,3]
[345468922,1734277832555,-556.02325897,0.00019799,3]
[345468925,1734277832567,-500.0,0.00019799,3]
[345468927,1734277832578,-500.0,0.00019799,3]
[345468929,1734277832590,-524.03,0.00019799,3]
[345468931,1734277832600,-500.0,0.00019799,3]
[345468933,1734277832610,-500.0,0.00019799,3]
[345468935,1734277832621,-500.0,0.00019799,3]
[345468937,1734277832631,-500.0,0.00019799,3]
[345468939,1734277832641,-500.0,0.00019799,3]
[345468941,1734277832651,-500.0,0.00019799,3]
[345468943,1734277832662,-500.0,0.00019799,3]
[345468945,1734277832672,-636.42,0.00019799,3]
[345468948,1734277832682,-500.0,0.00019799,3]
[345468950,1734277832692,-500.0,0.00019799,3]
[345468952,1734277832702,-500.0,0.00019799,3]
[345468954,1734277832712,-500.0,0.00019799,3]
[345468956,1734277832722,-500.0,0.00019799,3]
[345468958,1734277832733,-276.48614981,0.00019799,3]
[345468960,1734277832743,-500.0,0.00019799,3]
[345468962,1734277832753,-500.0,0.00019799,3]
[345468964,1734277832764,-500.0,0.00019799,3]
[345468966,1734277832774,-500.0,0.00019799,2]
[345468968,1734277832784,-500.0,0.00019799,3]
[345468970,1734277832795,-445.3274704,0.00019799,3]
[345468973,1734277832805,-500.0,0.00019799,3]
[345468975,1734277832816,-500.0,0.00019799,3]
[345468977,1734277832826,-500.0,0.00019799,3]
[345468979,1734277832836,-500.0,0.00019799,3]
[345468981,1734277832846,-500.0,0.00019799,3]
[345468983,1734277832857,-532.03898418,0.00019799,3]
[345468985,1734277832867,-500.0,0.00019799,3]
[345468987,1734277832877,-500.0,0.00019799,3]
[345468989,1734277832887,-500.0,0.00019799,3]
[345468992,1734277832898,-500.0,0.00019799,3]
[345468994,1734277832908,-500.0,0.00019799,3]
[345468996,1734277832918,-500.35711293,0.00019799,3]
[345468998,1734277832928,-500.0,0.00019799,3]
[345469000,1734277832938,-500.0,0.00019799,3]
[345469002,1734277832948,-500.0,0.00019799,3]
[345469004,1734277832958,-500.0,0.00019799,3]
[345469006,1734277832970,-500.0,0.00019799,3]
[345469008,1734277832980,-606.63987658,0.00019799,3]
[345469010,1734277832990,-500.0,0.00019799,3]
[345469012,1734277833000,-500.0,0.00019799,3]
[345469014,1734277833010,-500.0,0.00019799,3]
[345469016,1734277833021,-573.48,0.00019799,3]
[345469019,1734277833031,-500.0,0.00019799,3]
[345469021,1734277833041,-500.0,0.00019799,3]
[345469023,1734277833051,-500.0,0.00019799,3]
[345469025,1734277833062,-500.0,0.00019799,3]
[345469027,1734277833073,-500.0,0.00019799,3]
[345469029,1734277833083,-500.0,0.00019799,3]
[345469031,1734277833094,-500.0,0.00019799,3]
[345469033,1734277833104,-500.0,0.00019799,3]
[345469036,1734277833114,-500.0,0.00019799,3]
[345469038,1734277833125,-500.0,0.00019799,3]
[345469040,1734277833136,-500.0,0.00019799,3]
[345469042,1734277833146,-500.0,0.00019799,3]
[345469044,1734277833157,-500.0,0.00019799,3]
[345469046,1734277833167,-500.0,0.00019799,3]
[345469048,1734277833178,-500.0,0.00019799,3]
[345469050,1734277833189,-500.0,0.00019799,3]
[345469053,1734277833199,-500.0,0.00019799,3]
[345469055,1734277833210,-500.0,0.00019799,3]
[345469057,1734277833221,-500.0,0.00019799,3]
[345469059,1734277833231,-500.0,0.00019799,3]
[345469061,1734277833242,-500.0,0.00019799,3]
[345469063,1734277833252,-500.0,0.00019799,3]
[345469065,1734277833263,-500.0,0.00019799,3]
[345469068,1734277833274,-500.0,0.00019799,3]
[345469070,1734277833284,-500.0,0.00019799,3]
[345469072,1734277833295,-500.0,0.00019799,3]
[345469074,1734277833305,-202.55098688,0.00019799,3]
[345469076,1734277833318,-579.42,0.00019799,3]
[345469078,1734277833331,-500.0,0.00019799,3]
[345469080,1734277833343,-500.0,0.00019799,3]
[345469083,1734277833353,-500.0,0.00019799,3]
[345469085,1734277833364,-500.0,0.00019799,3]
[345469087,1734277833375,-500.0,0.00019799,2]
[345469089,1734277833385,-500.0,0.00019799,3]
[345469091,1734277833396,-184.99378496,0.00019799,3]
[345469093,1734277833407,-500.0,0.00019799,3]
[345469095,1734277833417,-500.0,0.00019799,3]
[345469098,1734277833428,-500.0,0.00019799,3]
[345469100,1734277833439,-500.0,0.00019799,3]
[345469102,1734277833450,-500.0,0.00019799,3]
[345469104,1734277833460,-500.0,0.00019799,3]
[345469129,1734277833691,-500.0,0.00019799,3]
[345469131,1734277833701,-500.0,0.00019799,3]
[345469133,1734277833711,-500.0,0.00019799,3]
[345469135,1734277833720,-504.47714202,0.00019799,3]
[345469137,1734277833730,-500.0,0.00019799,3]
[345469139,1734277833740,-500.0,0.00019799,3]
[345469141,1734277833749,-500.0,0.00019799,3]
[345469143,1734277833758,-500.0,0.00019799,3]
[345469145,1734277833767,-500.0,0.00019799,3]
[345469147,1734277833777,-500.0,0.00019799,3]
[345469149,1734277833785,-500.0,0.00019799,3]
[345469151,1734277833795,-559.13706334,0.00019799,3]
[345469153,1734277833804,-500.0,0.00019799,3]
[345469155,1734277833813,-500.0,0.00019799,3]
[345469157,1734277833824,-500.0,0.00019799,3]
[345469159,1734277833833,-500.0,0.00019799,3]
[345469160,1734277833842,-500.0,0.00019799,3]
[345469162,1734277833851,-439.84318109,0.00019799,3]
[345469164,1734277833861,-500.0,0.00019799,3]
[345469166,1734277833871,-500.0,0.00019799,3]
[345469168,1734277833880,-500.0,0.00019799,3]
[345469170,1734277833890,-500.0,0.00019799,3]
[345469172,1734277833899,-500.0,0.00019799,3]
[345469174,1734277833908,-538.33,0.00019799,3]
[345469176,1734277833917,-500.26290623,0.00019799,3]
[345469178,1734277833926,-500.0,0.00019799,3]
[345469180,1734277833936,-600.22440476,0.00019799,3]
[345469182,1734277833945,-500.0,0.00019799,3]
[345469184,1734277833954,-500.0,0.00019799,3]
[345469186,1734277833964,-500.0,0.00019799,3]
[345469188,1734277833973,-500.0,0.00019799,3]
[345469190,1734277833982,-500.0,0.00019799,3]
[345469192,1734277833991,-245.58436617,0.00019799,3]
[345469194,1734277834001,-500.0,0.00019799,3]
[345469196,1734277834010,-636.69,0.00019799,3]
[345469198,1734277834018,-500.0,0.00019799,3]
[345469200,1734277834027,-500.0,0.00019799,3]
[345469202,1734277834036,-500.0,0.00019799,3]
[345469204,1734277834046,-500.0,0.00019799,3]
[345469206,1734277834055,-265.13,0.00019799,3]
[345469208,1734277834066,-500.0,0.00019799,3]
[345469210,1734277834075,-500.0,0.00019799,3]
[345469212,1734277834084,-500.0,0.00019799,3]
[345469214,1734277834094,-500.0,0.00019799,3]
[345469216,1734277834105,-500.0,0.00019799,3]
[345469218,1734277834115,-500.0,0.00019799,3]
[345469220,1734277834124,-645.54,0.00019799,3]
[345469222,1734277834134,-511.5507408,0.00019799,3]
[345469223,1734277834143,-500.0,0.00019799,3]
[345469225,1734277834153,-500.0,0.00019799,3]
[345469227,1734277834162,-241.98,0.00019799,3]
[345469229,1734277834172,-500.0,0.00019799,3]
[345469231,1734277834182,-500.0,0.00019799,3]
[345469233,1734277834191,-500.0,0.00019799,3]
[345469235,1734277834200,-500.0,0.00019799,3]
[345469237,1734277834210,-500.0,0.00019799,3]
[345469240,1734277834220,-500.0,0.00019799,3]
[345469241,1734277834230,-565.25385649,0.00019799,3]
[345469244,1734277834240,-500.0,0.00019799,3]
[345469245,1734277834249,-500.0,0.00019799,3]
[345469247,1734277834259,-288.66,0.00019799,3]
[345469249,1734277834268,-500.0,0.00019799,3]
[345469251,1734277834278,-500.0,0.00019799,3]
[345469253,1734277834287,-500.0,0.00019799,3]
[345469256,1734277834297,-500.0,0.00019799,3]
[345469257,1734277834307,-500.0,0.00019799,3]
[345469260,1734277834316,-500.0,0.00019799,3]
[345469261,1734277834326,-573.58,0.00019799,3]
[345469263,1734277834335,-500.0,0.00019799,3]
[345469265,1734277834344,-500.0,0.00019799,3]
[345469267,1734277834353,-500.0,0.00019799,3]
[345469269,1734277834363,-500.0,0.00019799,3]
[345469271,1734277834372,-500.0,0.00019799,3]
[345469273,1734277834381,-500.0,0.00019799,3]
[345469275,1734277834391,-386.88,0.00019799,3]
[345469277,1734277834399,-500.0,0.00019799,3]
[345469279,1734277834408,-500.0,0.00019799,3]
[345469281,1734277834417,-500.0,0.00019799,3]
[345469283,1734277834427,-597.52,0.00019799,3]
[345469285,1734277834437,-500.0,0.00019799,3]
[345469287,1734277834447,-500.0,0.00019799,3]
[345469289,1734277834456,-500.0,0.00019799,3]
[345469291,1734277834465,-500.0,0.00019799,3]
[345469293,1734277834474,-500.0,0.00019799,3]
[345469295,1734277834483,-500.0,0.00019799,3]
[345469297,1734277834492,-500.0,0.00019799,3]
[345469299,1734277834502,-500.0,0.00019799,3]
[345469301,1734277834511,-500.0,0.00019799,3]
[345469303,1734277834525,-500.0,0.00019799,3]
[345469305,1734277834534,-500.0,0.00019799,3]
[345469307,1734277834543,-500.0,0.00019799,3]
[345469309,1734277834552,-326.57,0.00019799,3]
[345469311,1734277834564,-500.0,0.00019799,3]
[345469312,1734277834575,-500.0,0.00019799,3]
[345469313,1734277834584,-500.0,0.00019799,3]
[345469314,1734277834594,-365.87,0.00019799,3]
[345469315,1734277834603,-500.0,0.00019799,3]
[345469316,1734277834613,-500.0,0.00019799,3]
[345469317,1734277834622,-500.0,0.00019799,3]
[345469318,1734277834632,-500.0,0.00019799,3]
[345469319,1734277834641,-500.0,0.00019799,3]
[345469320,1734277834651,-194.99,0.00019799,3]
[345469321,1734277834660,-500.0,0.00019799,3]
[345469322,1734277834669,-500.0,0.00019799,3]
[345469324,1734277834679,-500.0,0.00019799,3]
[345469326,1734277834688,-500.0,0.00019799,3]
[345469328,1734277834697,-500.0,0.00019799,3]
[345469329,1734277834706,-500.0,0.00019799,3]
[345469331,1734277834715,-500.0,0.00019799,3]
[345469333,1734277834725,-500.0,0.00019799,3]
[345469335,1734277834734,-500.0,0.00019799,3]
[345469337,1734277834743,-500.0,0.00019799,3]
[345469339,1734277834753,-500.0,0.00019799,3]
[345469341,1734277834762,-581.76,0.00019799,3]
[345469343,1734277834771,-635.23,0.00019799,3]
[345469345,1734277834780,-527.9,0.00019799,3]
[345469347,1734277834790,-500.0,0.00019799,3]
[345469349,1734277834799,-500.0,0.00019799,3]
[345469351,1734277834808,-500.0,0.00019799,3]
[345469353,1734277834818,-563.01,0.00019799,3]
[345469355,1734277834828,-500.0,0.00019799,3]
[345469357,1734277834837,-1086.53,0.00019799,3]
[345469359,1734277834846,-500.0,0.00019799,3]
[345469361,1734277834855,-500.0,0.00019799,3]
[345469363,1734277834865,-500.0,0.00019799,3]
[345469365,1734277834875,-397.68,0.00019799,3]
[345469367,1734277834885,-500.0,0.00019799,3]
[345469369,1734277834895,-201.66,0.00019799,3]
[345469372,1734277834904,-605.18,0.00019799,3]
[345469374,1734277834914,-548.42,0.00019799,3]
[345469375,1734277834923,-500.0,0.00019799,3]
[345469378,1734277834933,-500.0,0.00019799,3]
[345469380,1734277834943,-500.0,0.00019799,3]
[345469382,1734277834952,-500.0,0.00019799,3]
[345469384,1734277834961,-500.0,0.00019799,3]
[345469386,1734277834970,-503.37,0.00019799,3]
[345469388,1734277834980,-500.0,0.00019799,3]
[345469390,1734277834989,-375.68,0.00019799,3]
[345469391,1734277834998,-500.0,0.00019799,3]
[345469393,1734277835007,-500.0,0.00019799,3]
[345469395,1734277835016,-500.0,0.00019799,3]
[345469397,1734277835025,-500.0,0.00019799,3]
[345469399,1734277835035,-500.0,0.00019799,3]
[345469401,1734277835044,-500.0,0.00019799,3]
[345469403,1734277835054,-500.0,0.00019799,3]
[345469405,1734277835063,-408.3586888,0.00019799,3]
[345469407,1734277835073,-500.0,0.00019799,3]
[345469409,1734277835083,-500.0,0.00019799,3]
[345469411,1734277835092,-500.0,0.00019799,3]
[345469413,1734277835101,-500.0,0.00019799,3]
[345469415,1734277835111,-500.0,0.00019799,3]
[345469417,1734277835120,-500.0,0.00019799,3]
[345469419,1734277835129,-500.0,0.00019799,3]
[345469421,1734277835138,-561.05,0.00019799,3]
[345469423,1734277835147,-500.0,0.00019799,3]
[345469425,1734277835157,-500.0,0.00019799,3]
[345469427,1734277835166,-500.0,0.00019799,3]
[345469429,1734277835176,-589.39,0.00019799,3]
[345469431,1734277835185,-500.0,0.00019799,3]
[345469433,1734277835195,-500.0,0.00019799,3]
[345469435,1734277835204,-500.0,0.00019799,3]
[345469437,1734277835213,-500.0,0.00019799,3]
[345469439,1734277835222,-500.0,0.00019799,3]
[345469441,1734277835231,-639.32,0.00019799,3]
[345469443,1734277835240,-300.26682502,0.00019799,3]
[345469445,1734277835250,-500.0,0.00019799,3]
[345469447,1734277835259,-403.0,0.00019799,3]
[345469449,1734277835268,-500.0,0.00019799,3]
[345469451,1734277835277,-500.0,0.00019799,3]
[345469453,1734277835287,-500.0,0.00019799,3]
[345469455,1734277835296,-314.62,0.00019799,3]
[345469457,1734277835305,-500.0,0.00019799,3]
[345469459,1734277835314,-500.0,0.00019799,3]
[345469460,1734277835326,-500.0,0.00019799,3]
[345469463,1734277835335,-500.0,0.00019799,3]
[345469464,1734277835344,-500.0,0.00019799,3]
[345469467,1734277835354,-500.0,0.00019799,3]
[345469468,1734277835363,-384.33267111,0.00019799,3]
[345469470,1734277835372,-500.0,0.00019799,3]
[345469472,1734277835381,-500.0,0.00019799,3]
[345469474,1734277835391,-500.0,0.00019799,3]
[345469476,1734277835399,-500.0,0.00019799,3]
[345469478,1734277835407,-500.0,0.00019799,3]
[345469480,1734277835416,-500.0,0.00019799,3]
[345469482,1734277835426,-500.0,0.00019799,3]
[345469484,1734277835435,-301.18178176,0.00019799,3]
[345469486,1734277835444,-500.0,0.00019799,3]
[345469488,1734277835453,-606.62,0.00019799,3]
[345469490,1734277835463,-500.0,0.00019799,3]
[345469492,1734277835472,-500.0,0.00019799,3]
[345469494,1734277835483,-500.0,0.00019799,3]
[345469496,1734277835492,-500.0,0.00019799,3]
[345469498,1734277835502,-500.0,0.00019799,3]
[345469500,1734277835511,-500.0,0.00019799,3]
[345469502,1734277835524,-500.0,0.00019799,3]
[345469504,1734277835534,-500.0,0.00019799,3]
[345469506,1734277835543,-500.0,0.00019799,3]
[345469508,1734277835553,-500.0,0.00019799,3]
[345469510,1734277835563,-619.5911821,0.00019799,3]
[345469512,1734277835575,-500.0,0.00019799,3]
[345469514,1734277835586,-500.0,0.00019799,3]
[345469517,1734277835596,-500.0,0.00019799,3]
[345469519,1734277835605,-500.0,0.00019799,3]
[345469521,1734277835614,-500.0,0.00019799,3]
[345469523,1734277835623,-500.0,0.00019799,3]
[345469525,1734277835632,-500.0,0.00019799,3]
[345469527,1734277835642,-500.0,0.00019799,3]
[345469528,1734277835651,-500.0,0.00019799,3]
[345469530,1734277835660,-500.0,0.00019799,3]
[345469533,1734277835670,-532.36,0.00019799,3]
[345469535,1734277835681,-669.76,0.00019799,3]
[345469537,1734277835690,-500.0,0.00019799,3]
[345469539,1734277835700,-669.76,0.00019799,3]
[345469541,1734277835710,-155.66,0.00019799,3]
[345469543,1734277835720,-500.0,0.00019799,3]
[345469544,1734277835729,-500.0,0.00019799,3]
[345469546,1734277835739,-171.94,0.00019799,3]
[345469548,1734277835749,-500.0,0.00019799,3]
[345469550,1734277835758,-396.50002,0.00019799,3]
[345469552,1734277835767,-500.0,0.00019799,3]
[345469554,1734277835776,-500.0,0.00019799,3]
[345469556,1734277835785,-500.0,0.00019799,3]
[345469558,1734277835795,-500.0,0.00019799,3]
[345469560,1734277835804,-500.0,0.00019799,3]
[345469562,1734277835813,-500.0,0.00019799,3]
[345469564,1734277835824,-500.0,0.00019799,3]
[345469566,1734277835833,-500.0,0.00019799,3]
[345469568,1734277835842,-500.0,0.00019799,3]
[345469570,1734277835851,-307.33,0.00019799,3]
[345469572,1734277835860,-292.46,0.00019799,3]
[345469574,1734277835870,-500.0,0.00019799,3]
[345469576,1734277835879,-500.0,0.00019799,3]
[345469578,1734277835889,-500.0,0.00019799,3]
[345469580,1734277835899,-245.42,0.00019799,3]
[345469582,1734277835908,-500.0,0.00019799,3]
[345469584,1734277835918,-500.0,0.00019799,3]
[345469586,1734277835927,-500.0,0.00019799,3]
[345469588,1734277835936,-501.0387952,0.00019799,3]
[345469590,1734277835945,-500.0,0.00019799,3]
[345469592,1734277835954,-500.0,0.00019799,3]
[345469594,1734277835964,-500.0,0.00019799,3]
[345469596,1734277835973,-500.0,0.00019799,3]
[345469598,1734277835983,-500.0,0.00019799,3]
[345469600,1734277835992,-500.0,0.00019799,3]
[345469602,1734277836002,-500.0,0.00019799,3]
[345469604,1734277836011,-500.0,0.00019799,3]
[345469606,1734277836020,-500.0,0.00019799,3]
[345469608,1734277836030,-500.0,0.00019799,3]
[345469610,1734277836039,-500.0,0.00019799,3]
[345469612,1734277836049,-318.37,0.00019799,3]
[345469614,1734277836058,-500.0,0.00019799,3]
[345469616,1734277836068,-500.0,0.00019799,3]
[345469618,1734277836078,-500.0,0.00019799,3]
[345469620,1734277836087,-622.87,0.00019799,3]
[345469622,1734277836097,-560.32,0.00019799,3]
[345469624,1734277836106,-500.0,0.00019799,3]
[345469626,1734277836115,-500.0,0.00019799,3]
[345469628,1734277836125,-500.0,0.00019799,3]
[345469630,1734277836135,-500.0,0.00019799,3]
[345469632,1734277836144,-500.0,0.00019799,3]
[345469634,1734277836154,-500.0,0.00019799,3]
[345469636,1734277836163,-345.97877456,0.00019799,3]
[345469638,1734277836173,-500.0,0.00019799,3]
[345469640,1734277836183,-500.0,0.00019799,3]
[345469641,1734277836192,-500.0,0.00019799,3]
[345469643,1734277836202,-500.0,0.00019799,3]
[345469645,1734277836211,-500.0,0.00019799,3]
[345469647,1734277836221,-500.0,0.00019799,3]
[345469649,1734277836231,-500.0,0.00019799,3]
[345469651,1734277836240,-500.0,0.00019799,3]
[345469653,1734277836250,-500.0,0.00019799,3]
[345469655,1734277836260,-500.0,0.00019799,3]
[345469657,1734277836269,-500.0,0.00019799,3]
[345469659,1734277836278,-500.0,0.00019799,3]
[345469661,1734277836288,-500.0,0.00019799,3]
[345469663,1734277836299,-500.0,0.00019799,3]
[345469665,1734277836308,-500.0,0.00019799,3]
[345469667,1734277836319,-535.14,0.00019799,3]
[345469669,1734277836331,-500.0,0.00019799,3]
[345469670,1734277836341,-500.0,0.00019799,3]
[345469673,1734277836351,-500.0,0.00019799,3]
[345469674,1734277836360,-500.0,0.00019799,3]
[345469676,1734277836370,-500.0,0.00019799,3]
[345469678,1734277836379,-553.38,0.00019799,3]
[345469680,1734277836388,-22.39735736,0.00019799,3]
[345469684,1734277836411,-477.60264264,0.00019799,3]
[345469686,1734277836421,-340.80698491,0.00019799,3]
[345469688,1734277836432,-500.0,0.00019799,3]
[345469690,1734277836441,-500.0,0.00019799,3]
[345469692,1734277836451,-500.0,0.00019799,3]
[345469694,1734277836460,-500.0,0.00019799,3]
[345469696,1734277836469,-500.0,0.00019799,3]
[345469698,1734277836479,-405.73,0.00019799,3]
[345469700,1734277836488,-232.61867463,0.00019799,3]
[345469702,1734277836500,-369.16132537,0.00019799,3]
[345469704,1734277836510,-502.14,0.00019799,3]
[345469706,1734277836525,-500.0,0.00019799,3]
[345469708,1734277836534,-149.50444109,0.00019799,3]
[345469710,1734277836546,-350.49555891,0.00019799,3]
[345469712,1734277836557,-500.0,0.00019799,3]
[345469714,1734277836568,-500.0,0.00019799,3]
[345469716,1734277836579,-500.0,0.00019799,3]
[345469718,1734277836590,-625.62,0.00019799,3]
[345469720,1734277836602,-500.0,0.00019799,3]
[345469722,1734277836611,-500.0,0.00019799,3]
[345469724,1734277836620,-500.0,0.00019799,3]
[345469726,1734277836630,-500.0,0.00019799,3]
[345469728,1734277836642,-500.0,0.00019799,3]
[345469730,1734277836653,-500.0,0.00019799,3]
[345469732,1734277836663,-500.0,0.00019799,3]
[345469734,1734277836672,-619.17,0.00019799,3]